[Event "Turkish Cup 2022"]
[Site "Sakarya"]
[Date "2022.03.28"]
[Round "6.38"]
[White "Arslan, Tayfun"]
[Black "Kilic, Cihan"]
[Result "0-1"]
[ECO "B13"]
[WhiteElo "1512"]
[BlackElo "1874"]
[Annotator "NA"]
[PlyCount "156"]
[EventDate "2022.03.25"]
[EventType "swiss"]
[EventCountry "TUR"]
[SourceTitle "playchess.com"]
[Source "ChessBase"]
[SourceQuality "1"]
[TimeControl "5400+30"]

1. e4 {[%emt 0:01:00]} c6 {[%emt 0:06:00]} 2. d4 {[%emt 0:05:30]} d5 {[%emt 0:00:30]} 3. exd5 {[%emt 0:00:30]} cxd5 {[%emt 0:00:30]} 4. Nf3 {[%emt 0:00:30]} Nc6 {[%emt 0:00:00]} 5. c3 {[%emt 0:00:00]} g6 {[%emt 0:00:00]} 6. Bd3 {[%emt 0:02:00]} Bg7 {[%emt 0:00:30]} 7. O-O {[%emt 0:00:30]} e6 {[%emt 0:00:00]} 8. Re1 {[%emt 0:02:30]} Nge7 {[%emt 0:00:00]} 9. Nbd2 {[%emt 0:02:30]} O-O {[%emt 0:00:30]} 10. Nf1 {[%emt 0:00:30]} a6 {[%emt 0:01:30]} 11. Bf4 {[%emt 0:00:30]} b5 {[%emt 0:00:30]} 12. Qd2 {[%emt 0:01:30]} Re8 {[%emt 0:01:30]} 13. b4 {[%emt 0:08:30]} Bb7 {[%emt 0:05:30]} 14. a4 {[%emt 0:03:30]} bxa4 {[%emt 0:01:30]} 15. Rxa4 {[%emt 0:01:30]} Nc8 {[%emt 0:00:30]} 16. Qe2 {[%emt 0:02:30]} Nb6 {[%emt 0:07:30]} 17. Ra2 {[%emt 0:03:30]} Qc8 {[%emt 0:02:30]} 18. Rea1 {[%emt 0:02:30]} Nb8 {[%emt 0:02:30]} 19. Qc2 {[%emt 0:05:30]} Nc4 {[%emt 0:03:30]} 20. N1d2 {[%emt 0:02:30]} Nd7 {[%emt 0:03:30]} 21. Nxc4 {[%emt 0:04:30]} dxc4 {[%emt 0:03:30]} 22. Be4 {[%emt 0:00:00]} e5 {[%emt 0:03:30]} 23. Bxb7 {[%emt 0:01:00]} Qxb7 {[%emt 0:00:30]} 24. dxe5 {[%emt 0:07:30]} Bxe5 {[%emt 0:00:30]} 25. Bxe5 {[%emt 0:01:30]} Nxe5 {[%emt 0:00:30]} 26. Nd4 {[%emt 0:00:30]} Nd3 {[%emt 0:01:30]} 27. Qa4 {[%emt 0:01:30]} Re5 {[%emt 0:02:30]} 28. Qc6 {[%emt 0:01:30]} Rae8 {[%emt 0:08:30]} 29. g3 {[%emt 0:02:30]} Re1+ {[%emt 0:05:30]} 30. Rxe1 {[%emt 0:01:30]} Rxe1+ {[%emt 0:00:30]} 31. Kg2 {[%emt 0:00:30]} Qxc6+ {[%emt 0:11:30]} 32. Nxc6 {[%emt 0:03:30]} Rc1 {[%emt 0:01:30]} 33. Ne7+ {[%emt 0:01:30]} Kg7 {[%emt 0:01:30]} 34. Nd5 {[%emt 0:00:30]} g5 {[%emt 0:05:30]} 35. h3 {[%emt 0:04:30]} f5 {[%emt 0:01:30]} 36. f4 {[%emt 0:03:30]} g4 {[%emt 0:01:30]} 37. hxg4 {[%emt 0:00:30]} fxg4 {[%emt 0:00:00]} 38. Rxa6 {[%emt 0:02:30]} Rc2+ {[%emt 0:01:48]} 39. Kf1 {[%emt 0:01:30]} Rf2+ {[%emt 0:00:30]} 40. Kg1 {[%emt 0:00:00]} Rf3 {[%emt 0:00:35]} 41. Ra2 {[%emt 0:04:09]} h5 {[%emt 0:03:07]} 42. Rg2 {[%emt 0:05:14]} Kg6 {[%emt 0:03:40]} 43. b5 {[%emt 0:01:14]} Nc5 {[%emt 0:01:17]} 44. Nb6 {[%emt 0:07:47]} Rxc3 {[%emt 0:00:39]} 45. Kh2 {[%emt 0:00:47]} Rc1 {[%emt 0:00:48]} 46. Rd2 {[%emt 0:01:01]} c3 {[%emt 0:02:01]} 47. Rd6+ {[%emt 0:00:08]} Kf7 {[%emt 0:00:15]} 48. Rc6 {[%emt 0:00:21]} Rc2+ {[%emt 0:01:31]} 49. Kg1 {[%emt 0:00:04]} Rd2 {[%emt 0:02:46]} 50. Rc7+ {[%emt 0:00:46]} Ke8 {[%emt 0:03:54]} 51. Rc8+ {[%emt 0:00:08]} Ke7 {[%emt 0:00:27]} 52. Rc7+ {[%emt 0:00:01]} Nd7 {[%emt 0:01:04]} 53. Nc8+ {[%emt 0:00:08]} Kd8 {[%emt 0:01:02]} 54. Rxc3 {[%emt 0:00:01]} Rb2 {[%emt 0:00:20]} 55. Nd6 {[%emt 0:01:19]} Ke7 {[%emt 0:00:03]} 56. Rd3 {[%emt 0:01:31]} Ke6 {[%emt 0:00:59]} 57. Ne8 {[%emt 0:02:41]} Nc5 {[%emt 0:01:33]} 58. Ng7+ {[%emt 0:01:13]} Kf7 {[%emt 0:01:00]} 59. Rd5 {[%emt 0:00:04]} Rb1+ {[%emt 0:00:27]} 60. Kg2 {[%emt 0:00:16]} Rxb5 {[%emt 0:00:04]} 61. Nxh5 {[%emt 0:00:30]} Rb2+ {[%emt 0:00:14]} 62. Kf1 {[%emt 0:00:15]} Ne4 {[%emt 0:00:06]} 63. Rf5+ {[%emt 0:01:36]} Kg6 {[%emt 0:00:30]} 64. Re5 {[%emt 0:00:00]} Nd2+ {[%emt 0:00:58]} 65. Kf2 {[%emt 0:00:47]} Nf3+ {[%emt 0:00:30]} 66. Re2 {[%emt 0:00:30]} Rxe2+ {[%emt 0:00:30]} 67. Kxe2 {[%emt 0:00:00]} Kxh5 {[%emt 0:00:00]} 68. Ke3 {[%emt 0:00:00]} Kg6 {[%emt 0:00:07]} 69. Ke4 {[%emt 0:00:00]} Nd2+ {[%emt 0:00:16]} 70. Ke5 {[%emt 0:00:11]} Nc4+ {[%emt 0:00:37]} 71. Kd4 {[%emt 0:04:39]} Nd6 {[%emt 0:00:05]} 72. Ke3 {[%emt 0:00:45]} Nf5+ {[%emt 0:00:30]} 73. Kf2 {[%emt 0:00:30]} Kf6 {[%emt 0:00:00]} 74. Kg2 {[%emt 0:00:00]} Ke6 {[%emt 0:00:23]} 75. Kf2 {[%emt 0:00:12]} Kd5 {[%emt 0:00:00]} 76. Kg2 {[%emt 0:00:31]} Ke4 {[%emt 0:00:04]} 77. Kf2 {[%emt 0:00:30]} Kd3 {[%emt 0:00:30]} 78. Kg2 {[%emt 0:00:30]} Ke3 {[%emt 0:00:00]} 0-1

[Event "Turkish Cup 2022"]
[Site "Sakarya"]
[Date "2022.03.28"]
[Round "6.39"]
[White "Once, Ahmet Asim"]
[Black "Zuberoglu, Ibrahim Berk"]
[Result "0-1"]
[ECO "A48"]
[WhiteElo "1450"]
[BlackElo "1780"]
[Annotator "NA"]
[PlyCount "83"]
[EventDate "2022.03.25"]
[EventType "swiss"]
[EventCountry "TUR"]
[SourceTitle "playchess.com"]
[Source "ChessBase"]
[SourceQuality "1"]
[TimeControl "5400+30"]

1. d4 Nf6 {[%emt 0:01:00]} 2. Nf3 {[%emt 0:01:30]} g6 {[%emt 0:00:30]} 3. Bf4 {[%emt 0:01:30]} Bg7 {[%emt 0:01:30]} 4. e3 {[%emt 0:00:30]} d6 {[%emt 0:00:30]} 5. Nbd2 {[%emt 0:01:30]} O-O {[%emt 0:00:30]} 6. Bd3 {[%emt 0:03:30]} Nc6 {[%emt 0:03:30]} 7. c3 {[%emt 0:25:30]} e5 {[%emt 0:09:30]} 8. Bg5 {[%emt 0:01:30]} h6 {[%emt 0:02:30]} 9. Bxf6 {[%emt 0:01:30]} Bxf6 {[%emt 0:04:30]} 10. Qc2 {[%emt 0:08:30]} Bg7 {[%emt 0:08:30]} 11. h4 {[%emt 0:09:30]} Be6 {[%emt 0:10:30]} 12. Nf1 {[%emt 0:08:30]} Qe7 {[%emt 0:07:30]} 13. dxe5 {[%emt 0:06:30]} dxe5 {[%emt 0:01:30]} 14. h5 {[%emt 0:01:30]} f5 {[%emt 0:12:30]} 15. Nh4 {[%emt 0:05:30]} e4 {[%emt 0:09:30]} 16. Nxg6 {[%emt 0:02:45]} Qc5 {[%emt 0:01:30]} 17. Nxf8 {[%emt 0:04:12]} Rxf8 {[%emt 0:00:30]} 18. Be2 {[%emt 0:01:57]} Nb4 {[%emt 0:03:31]} 19. Qc1 {[%emt 0:08:00]} Nxa2 {[%emt 0:05:05]} 20. Rxa2 {[%emt 0:02:17]} Bxa2 {[%emt 0:00:08]} 21. Nd2 {[%emt 0:00:59]} Be6 {[%emt 0:02:02]} 22. Qc2 {[%emt 0:01:39]} Kh8 {[%emt 0:05:01]} 23. Nb3 {[%emt 0:02:10]} Qe7 {[%emt 0:02:08]} 24. Nd4 {[%emt 0:00:45]} Bd7 {[%emt 0:00:49]} 25. Qb3 {[%emt 0:00:40]} c5 {[%emt 0:01:33]} 26. Nb5 {[%emt 0:00:33]} a6 {[%emt 0:00:45]} 27. Nc7 {[%emt 0:00:31]} Qd6 {[%emt 0:04:07]} 28. Nd5 {[%emt 0:00:31]} c4 {[%emt 0:01:54]} 29. Bxc4 {[%emt 0:00:38]} b5 {[%emt 0:00:01]} 30. Be2 {[%emt 0:00:34]} Be6 {[%emt 0:00:27]} 31. c4 {[%emt 0:00:09]} bxc4 {[%emt 0:00:32]} 32. Bxc4 {[%emt 0:00:12]} Bxd5 {[%emt 0:00:21]} 33. Bxd5 {[%emt 0:00:34]} Rd8 {[%emt 0:00:03]} 34. O-O {[%emt 0:01:04]} Qxd5 {[%emt 0:00:05]} 35. Qb6 {[%emt 0:00:06]} Qd6 {[%emt 0:00:47]} 36. Qb7 {[%emt 0:00:22]} Rb8 {[%emt 0:00:41]} 37. Qf7 {[%emt 0:00:36]} Qf6 {[%emt 0:01:08]} 38. Qd5 {[%emt 0:00:34]} Qg5 {[%emt 0:01:14]} 39. b3 {[%emt 0:00:37]} Rd8 {[%emt 0:01:01]} 40. Qf7 {[%emt 0:00:25]} Be5 {[%emt 0:00:12]} 41. g3 {[%emt 0:00:37]} Rg8 {[%emt 0:00:41]} 42. Kh2 {[%emt 0:01:03]} 0-1

[Event "Turkish Cup 2022"]
[Site "Sakarya"]
[Date "2022.03.28"]
[Round "6.40"]
[White "Lokman, Hilmi Merih"]
[Black "Kuru, Atilla"]
[Result "0-1"]
[ECO "D31"]
[WhiteElo "1601"]
[BlackElo "1674"]
[Annotator "NA"]
[PlyCount "146"]
[EventDate "2022.03.25"]
[EventType "swiss"]
[EventCountry "TUR"]
[SourceTitle "playchess.com"]
[Source "ChessBase"]
[SourceQuality "1"]
[TimeControl "5400+30"]

1. d4 Nf6 2. c4 e6 3. Nc3 d5 4. e3 {[%emt 0:01:30]} c6 {[%emt 0:01:30]} 5. f4 {[%emt 0:00:30]} Bb4 {[%emt 0:00:30]} 6. Nf3 {[%emt 0:00:30]} Ne4 {[%emt 0:00:30]} 7. Bd2 {[%emt 0:00:30]} Nxd2 {[%emt 0:00:30]} 8. Qxd2 {[%emt 0:00:00]} Nd7 {[%emt 0:00:30]} 9. a3 {[%emt 0:00:00]} Bd6 {[%emt 0:00:00]} 10. c5 {[%emt 0:00:30]} Bc7 {[%emt 0:00:00]} 11. Bd3 {[%emt 0:00:30]} b6 {[%emt 0:00:30]} 12. b4 {[%emt 0:02:30]} bxc5 {[%emt 0:00:30]} 13. bxc5 {[%emt 0:00:30]} O-O {[%emt 0:00:30]} 14. O-O {[%emt 0:00:00]} f6 {[%emt 0:00:30]} 15. Qc2 {[%emt 0:00:00]} g6 {[%emt 0:00:30]} 16. Bxg6 {[%emt 0:00:30]} f5 {[%emt 0:00:30]} 17. Bh5 {[%emt 0:00:30]} Nf6 {[%emt 0:00:00]} 18. Ne5 {[%emt 0:01:30]} Bxe5 {[%emt 0:00:00]} 19. dxe5 {[%emt 0:00:30]} Nxh5 {[%emt 0:00:00]} 20. Ne2 {[%emt 0:00:30]} Ba6 {[%emt 0:00:00]} 21. Nd4 {[%emt 0:00:30]} Bxf1 {[%emt 0:00:30]} 22. Nxe6 {[%emt 0:00:00]} Qe7 {[%emt 0:00:30]} 23. Nxf8 {[%emt 0:00:00]} Bc4 {[%emt 0:00:30]} 24. Qxf5 {[%emt 0:00:30]} Ng7 {[%emt 0:00:00]} 25. Qxh7+ {[%emt 0:00:30]} Kxf8 {[%emt 0:00:00]} 26. Qh8+ {[%emt 0:00:00]} Kf7 {[%emt 0:00:00]} 27. Qxa8 {[%emt 0:00:00]} Qxc5 {[%emt 0:00:00]} 28. Qb7+ {[%emt 0:00:30]} Kg6 {[%emt 0:00:00]} 29. Re1 {[%emt 0:03:30]} Bb5 {[%emt 0:00:00]} 30. Qc8 {[%emt 0:01:30]} Qc3 {[%emt 0:02:30]} 31. Qg4+ {[%emt 0:00:30]} Kh7 {[%emt 0:00:00]} 32. Qh4+ {[%emt 0:00:30]} Kg8 {[%emt 0:00:00]} 33. Qg3 {[%emt 0:00:30]} Kf7 {[%emt 0:00:30]} 34. Qh4 {[%emt 0:01:30]} Nf5 {[%emt 0:00:30]} 35. Qf2 {[%emt 0:06:30]} d4 {[%emt 0:00:30]} 36. exd4 {[%emt 0:00:30]} Nxd4 {[%emt 0:00:30]} 37. h3 {[%emt 0:00:30]} Ke6 {[%emt 0:00:30]} 38. Re3 {[%emt 0:00:30]} Qc1+ {[%emt 0:00:30]} 39. Kh2 {[%emt 0:00:30]} c5 {[%emt 0:00:30]} 40. Rg3 {[%emt 0:00:30]} Bc6 {[%emt 0:01:30]} 41. Rg6+ {[%emt 0:00:00]} Kd5 {[%emt 0:00:30]} 42. Rd6+ {[%emt 0:02:00]} Kc4 {[%emt 0:01:30]} 43. e6 {[%emt 0:00:30]} Qd1 {[%emt 0:04:30]} 44. f5 {[%emt 0:03:30]} Nf3+ {[%emt 0:00:30]} 45. Qxf3 {[%emt 0:01:30]} Qxd6+ {[%emt 0:00:30]} 46. Qg3 {[%emt 0:00:30]} Qd5 {[%emt 0:00:30]} 47. Qg4+ {[%emt 0:00:30]} Kb5 {[%emt 0:00:30]} 48. f6 {[%emt 0:00:30]} Qe5+ {[%emt 0:00:00]} 49. Qg3 {[%emt 0:00:30]} Qxf6 {[%emt 0:00:00]} 50. Qb3+ {[%emt 0:00:30]} Ka6 {[%emt 0:00:30]} 51. Qc4+ {[%emt 0:00:30]} Kb6 {[%emt 0:00:00]} 52. Qg4 {[%emt 0:03:30]} Qe5+ {[%emt 0:00:00]} 53. Kg1 {[%emt 0:00:30]} Bd5 {[%emt 0:00:00]} 54. h4 {[%emt 0:01:30]} Qe1+ {[%emt 0:00:00]} 55. Kh2 {[%emt 0:00:30]} Bxe6 {[%emt 0:00:30]} 56. Qg5 {[%emt 0:00:00]} Qd1 {[%emt 0:00:30]} 57. h5 {[%emt 0:00:00]} Qd6+ {[%emt 0:00:30]} 58. Kg1 {[%emt 0:00:30]} Bf7 {[%emt 0:00:30]} 59. h6 {[%emt 0:00:30]} Bg6 {[%emt 0:00:00]} 60. a4 {[%emt 0:01:30]} a6 {[%emt 0:00:00]} 61. Qc1 {[%emt 0:00:30]} Qd4+ {[%emt 0:00:00]} 62. Kh1 {[%emt 0:00:00]} Qxa4 {[%emt 0:01:00]} 63. Qb2+ {[%emt 0:00:00]} Ka5 {[%emt 0:00:30]} 64. Qg7 {[%emt 0:00:30]} Qd1+ {[%emt 0:00:30]} 65. Kh2 {[%emt 0:00:00]} Qh5+ {[%emt 0:01:30]} 66. Kg1 {[%emt 0:00:00]} c4 {[%emt 0:10:30]} 67. Qc7+ {[%emt 0:00:30]} Kb4 {[%emt 0:01:30]} 68. Qb6+ {[%emt 0:00:30]} Kc3 {[%emt 0:00:00]} 69. Qxa6 {[%emt 0:01:30]} Qxh6 {[%emt 0:00:00]} 70. Qa1+ {[%emt 0:00:30]} Kb3 {[%emt 0:00:30]} 71. Qd1+ {[%emt 0:00:00]} Bc2 {[%emt 0:00:30]} 72. Qf3+ {[%emt 0:00:00]} Kb2 {[%emt 0:00:00]} 73. Qb7+ {[%emt 0:01:30]} Bb3 {[%emt 0:00:00]} 0-1

[Event "Turkish Cup 2022"]
[Site "Sakarya"]
[Date "2022.03.28"]
[Round "6.41"]
[White "Kurdas, Halil Ibrahim"]
[Black "Elmas, Mustafa"]
[Result "1-0"]
[ECO "E07"]
[WhiteElo "1850"]
[BlackElo "1614"]
[Annotator "NA"]
[PlyCount "79"]
[EventDate "2022.03.25"]
[EventType "swiss"]
[EventCountry "TUR"]
[SourceTitle "playchess.com"]
[Source "ChessBase"]
[SourceQuality "1"]
[TimeControl "5400+30"]

1. Nf3 Nf6 2. g3 d5 {[%emt 0:01:30]} 3. d4 {[%emt 0:02:00]} e6 {[%emt 0:00:30]} 4. Bg2 {[%emt 0:00:30]} Nbd7 {[%emt 0:00:30]} 5. O-O {[%emt 0:00:30]} c5 {[%emt 0:00:00]} 6. c4 {[%emt 0:01:30]} Be7 {[%emt 0:02:00]} 7. cxd5 {[%emt 0:02:30]} exd5 {[%emt 0:00:00]} 8. Nc3 {[%emt 0:00:30]} O-O {[%emt 0:01:00]} 9. Bg5 {[%emt 0:12:30]} h6 {[%emt 0:03:30]} 10. Bf4 {[%emt 0:01:30]} c4 {[%emt 0:01:30]} 11. Ne5 {[%emt 0:03:30]} Nb6 {[%emt 0:01:30]} 12. a4 {[%emt 0:02:30]} Bb4 {[%emt 0:07:30]} 13. a5 {[%emt 0:05:30]} Bxc3 {[%emt 0:01:30]} 14. bxc3 {[%emt 0:00:30]} Nbd7 {[%emt 0:00:30]} 15. a6 {[%emt 0:00:00]} Nb6 {[%emt 0:08:30]} 16. Qc2 {[%emt 0:02:00]} bxa6 {[%emt 0:05:30]} 17. Nc6 {[%emt 0:01:30]} Qd7 {[%emt 0:00:30]} 18. Nb4 {[%emt 0:00:00]} Re8 {[%emt 0:00:30]} 19. Nxa6 {[%emt 0:01:00]} Bxa6 {[%emt 0:03:30]} 20. Rxa6 {[%emt 0:00:00]} Ne4 {[%emt 0:01:30]} 21. f3 {[%emt 0:01:00]} Nf6 {[%emt 0:00:30]} 22. Be5 {[%emt 0:03:30]} Qb7 {[%emt 0:02:30]} 23. Rfa1 {[%emt 0:02:30]} Nfd7 {[%emt 0:00:30]} 24. Bf4 {[%emt 0:02:30]} Nb8 {[%emt 0:03:30]} 25. Bxb8 {[%emt 0:00:30]} Qxb8 {[%emt 0:00:30]} 26. e4 {[%emt 0:02:30]} Re7 {[%emt 0:02:30]} 27. e5 {[%emt 0:01:30]} Qc8 {[%emt 0:01:30]} 28. f4 {[%emt 0:01:30]} g6 {[%emt 0:01:30]} 29. g4 {[%emt 0:00:30]} Qe8 {[%emt 0:08:30]} 30. f5 {[%emt 0:01:30]} Kh7 {[%emt 0:01:30]} 31. h4 {[%emt 0:01:30]} Rd8 {[%emt 0:03:30]} 32. Rxa7 {[%emt 0:01:30]} Rxa7 {[%emt 0:03:30]} 33. Rxa7 {[%emt 0:00:30]} Rd7 {[%emt 0:00:30]} 34. Ra6 {[%emt 0:00:30]} Nc8 {[%emt 0:05:30]} 35. h5 {[%emt 0:02:30]} g5 {[%emt 0:10:30]} 36. Qa4 {[%emt 0:03:30]} Qd8 {[%emt 0:03:27]} 37. Qc6 {[%emt 0:00:30]} f6 {[%emt 0:02:41]} 38. Ra8 {[%emt 0:05:30]} Rc7 {[%emt 0:02:45]} 39. Qe6 {[%emt 0:00:30]} Qe7 {[%emt 0:10:13]} 40. Rxc8 {[%emt 0:00:30]} 1-0

[Event "Turkish Cup 2022"]
[Site "Sakarya"]
[Date "2022.03.28"]
[Round "6.43"]
[White "Hatirli, Ugur Can"]
[Black "Kaban, Mahmut"]
[Result "1-0"]
[ECO "A11"]
[WhiteElo "1818"]
[BlackElo "1525"]
[Annotator "NA"]
[PlyCount "169"]
[EventDate "2022.03.25"]
[EventType "swiss"]
[EventCountry "TUR"]
[SourceTitle "playchess.com"]
[Source "ChessBase"]
[SourceQuality "1"]
[TimeControl "5400+30"]

1. Nf3 {[%emt 0:01:00]} d5 {[%emt 0:02:00]} 2. g3 {[%emt 0:00:30]} Bg4 {[%emt 0:02:30]} 3. Bg2 {[%emt 0:00:30]} e6 {[%emt 0:04:30]} 4. c4 {[%emt 0:02:30]} c6 {[%emt 0:00:00]} 5. cxd5 {[%emt 0:00:30]} Bxf3 {[%emt 0:02:00]} 6. Bxf3 {[%emt 0:00:30]} cxd5 {[%emt 0:00:30]} 7. d3 {[%emt 0:02:30]} Nc6 {[%emt 0:01:30]} 8. O-O {[%emt 0:01:30]} Nf6 {[%emt 0:02:30]} 9. Nd2 {[%emt 0:03:30]} Rc8 {[%emt 0:01:30]} 10. Bg2 {[%emt 0:01:30]} Be7 {[%emt 0:09:30]} 11. Nf3 {[%emt 0:02:30]} O-O {[%emt 0:00:30]} 12. Bd2 {[%emt 0:02:30]} b5 {[%emt 0:05:30]} 13. Qb3 {[%emt 0:03:30]} Qb6 {[%emt 0:02:30]} 14. Rac1 {[%emt 0:03:30]} a5 {[%emt 0:24:30]} 15. Be3 {[%emt 0:00:30]} Qa6 {[%emt 0:01:30]} 16. a4 {[%emt 0:03:30]} Rb8 {[%emt 0:15:30]} 17. axb5 {[%emt 0:05:30]} Rxb5 {[%emt 0:00:30]} 18. Qa4 {[%emt 0:00:00]} Nb4 {[%emt 0:01:30]} 19. Rc7 {[%emt 0:02:00]} Rb7 {[%emt 0:04:32]} 20. Rxe7 {[%emt 0:11:30]} Rxe7 {[%emt 0:00:30]} 21. Bc5 {[%emt 0:00:00]} Rb7 {[%emt 0:01:41]} 22. Bxf8 {[%emt 0:00:00]} Kxf8 {[%emt 0:00:05]} 23. Rc1 {[%emt 0:01:30]} Nd7 {[%emt 0:03:52]} 24. Nd4 {[%emt 0:05:30]} Qb6 {[%emt 0:02:03]} 25. Nf3 {[%emt 0:08:30]} Nc5 {[%emt 0:01:05]} 26. Qa3 {[%emt 0:01:30]} f6 {[%emt 0:03:22]} 27. Bh3 {[%emt 0:01:30]} Kf7 {[%emt 0:00:53]} 28. Bf1 {[%emt 0:15:30]} Nba6 {[%emt 0:02:50]} 29. d4 {[%emt 0:02:58]} Ne4 {[%emt 0:00:48]} 30. Rc8 {[%emt 0:02:56]} Nb4 {[%emt 0:00:55]} 31. Qa4 {[%emt 0:07:48]} Nd6 {[%emt 0:01:05]} 32. Rc5 {[%emt 0:00:37]} Ra7 {[%emt 0:00:18]} 33. e3 {[%emt 0:00:44]} Ne4 {[%emt 0:02:11]} 34. Rc8 {[%emt 0:02:18]} Nd6 {[%emt 0:00:44]} 35. Rh8 {[%emt 0:00:12]} Qc6 {[%emt 0:00:29]} 36. Qd1 {[%emt 0:02:08]} Qc2 {[%emt 0:00:30]} 37. Qxc2 {[%emt 0:00:30]} Nxc2 {[%emt 0:00:00]} 38. h4 {[%emt 0:01:45]} Rb7 {[%emt 0:00:25]} 39. Ra8 {[%emt 0:00:21]} Rxb2 {[%emt 0:00:39]} 40. Rxa5 {[%emt 0:00:52]} Rb1 {[%emt 0:00:42]} 41. Ra7+ {[%emt 0:00:02]} Kf8 {[%emt 0:01:32]} 42. Rc7 {[%emt 0:02:40]} Nc4 {[%emt 0:00:25]} 43. h5 {[%emt 0:00:31]} Rd1 {[%emt 0:00:35]} 44. h6 {[%emt 0:00:35]} gxh6 {[%emt 0:00:30]} 45. Rxh7 {[%emt 0:00:21]} N2xe3 {[%emt 0:00:14]} 46. fxe3 {[%emt 0:00:30]} Nxe3 {[%emt 0:00:00]} 47. Nh2 {[%emt 0:00:00]} Nf5 {[%emt 0:01:24]} 48. g4 {[%emt 0:00:49]} Nxd4 {[%emt 0:00:34]} 49. Rxh6 {[%emt 0:00:38]} Kg7 {[%emt 0:00:30]} 50. Rh3 {[%emt 0:00:30]} Ne2+ {[%emt 0:00:00]} 51. Kf2 {[%emt 0:00:00]} Nf4 {[%emt 0:00:00]} 52. Ra3 {[%emt 0:00:23]} e5 {[%emt 0:00:37]} 53. Nf3 {[%emt 0:01:06]} d4 {[%emt 0:00:53]} 54. Ra7+ {[%emt 0:01:37]} Kg6 {[%emt 0:00:11]} 55. Re7 {[%emt 0:00:41]} Nd5 {[%emt 0:00:49]} 56. Re8 {[%emt 0:00:06]} Ne3 {[%emt 0:01:04]} 57. Be2 {[%emt 0:00:41]} Rh1 {[%emt 0:00:50]} 58. g5 {[%emt 0:00:33]} Kf7 {[%emt 0:00:39]} 59. Rb8 {[%emt 0:00:35]} fxg5 {[%emt 0:00:46]} 60. Nxe5+ {[%emt 0:00:16]} Ke6 {[%emt 0:00:19]} 61. Nf3 {[%emt 0:00:12]} Nf5 {[%emt 0:00:55]} 62. Rb6+ {[%emt 0:00:30]} Ke7 {[%emt 0:00:00]} 63. Rg6 {[%emt 0:00:22]} Rh5 {[%emt 0:00:33]} 64. Nxg5 {[%emt 0:01:56]} Rh2+ {[%emt 0:00:11]} 65. Ke1 {[%emt 0:00:00]} Rh1+ {[%emt 0:01:03]} 66. Kd2 {[%emt 0:00:01]} Ra1 {[%emt 0:00:26]} 67. Re6+ {[%emt 0:00:13]} Kd7 {[%emt 0:00:21]} 68. Bg4 {[%emt 0:00:31]} Rf1 {[%emt 0:00:00]} 69. Rf6 {[%emt 0:00:40]} Rg1 {[%emt 0:00:18]} 70. Bxf5+ {[%emt 0:00:30]} Ke7 {[%emt 0:00:13]} 71. Re6+ {[%emt 0:00:00]} Kf8 {[%emt 0:00:00]} 72. Nf3 {[%emt 0:00:06]} Rg2+ {[%emt 0:00:17]} 73. Kd3 {[%emt 0:00:30]} Rg3 {[%emt 0:00:30]} 74. Be4 {[%emt 0:00:30]} Kf7 {[%emt 0:00:30]} 75. Ra6 {[%emt 0:00:00]} Ke7 {[%emt 0:00:00]} 76. Kxd4 {[%emt 0:00:00]} Kd7 {[%emt 0:00:02]} 77. Ne5+ {[%emt 0:00:09]} Ke7 {[%emt 0:00:30]} 78. Kd5 {[%emt 0:00:00]} Rg1 {[%emt 0:00:06]} 79. Re6+ {[%emt 0:00:01]} Kd8 {[%emt 0:00:26]} 80. Kd6 {[%emt 0:00:16]} Rd1+ {[%emt 0:00:25]} 81. Bd5 {[%emt 0:00:04]} Rf1 {[%emt 0:00:36]} 82. Nc6+ {[%emt 0:01:00]} Kc8 {[%emt 0:00:30]} 83. Re8+ {[%emt 0:00:30]} Kb7 {[%emt 0:00:30]} 84. Rb8+ {[%emt 0:00:00]} Ka6 {[%emt 0:00:00]} 85. Bc4# {[%emt 0:00:00]} 1-0

[Event "Turkish Cup 2022"]
[Site "Sakarya"]
[Date "2022.03.28"]
[Round "6.44"]
[White "Ulku, Ahmet"]
[Black "Serbulent, Huseyin"]
[Result "1-0"]
[ECO "B52"]
[WhiteElo "1284"]
[BlackElo "1775"]
[Annotator "NA"]
[PlyCount "127"]
[EventDate "2022.03.25"]
[EventType "swiss"]
[EventCountry "TUR"]
[SourceTitle "playchess.com"]
[Source "ChessBase"]
[SourceQuality "1"]
[TimeControl "5400+30"]

1. e4 c5 2. Nf3 d6 3. Bb5+ Bd7 4. Bxd7+ Qxd7 5. O-O g6 6. c3 Bg7 7. d4 {[%emt 0:01:00]} e6 {[%emt 0:02:00]} 8. Bf4 {[%emt 0:02:30]} Ne7 {[%emt 0:06:30]} 9. Qc1 {[%emt 0:03:30]} O-O {[%emt 0:00:00]} 10. Na3 {[%emt 0:04:30]} cxd4 {[%emt 0:01:00]} 11. cxd4 {[%emt 0:01:30]} Rc8 {[%emt 0:02:30]} 12. Qd2 {[%emt 0:00:30]} Na6 {[%emt 0:00:00]} 13. Rac1 {[%emt 0:01:30]} d5 {[%emt 0:00:00]} 14. e5 {[%emt 0:00:00]} Nf5 {[%emt 0:02:30]} 15. Nc2 {[%emt 0:04:00]} Qa4 {[%emt 0:03:30]} 16. a3 {[%emt 0:02:30]} Rc4 {[%emt 0:05:30]} 17. Ne3 {[%emt 0:02:30]} Nxe3 {[%emt 0:01:30]} 18. Qxe3 {[%emt 0:00:00]} Qb5 {[%emt 0:08:30]} 19. b3 {[%emt 0:02:00]} Rc6 {[%emt 0:00:30]} 20. Rxc6 {[%emt 0:00:30]} bxc6 {[%emt 0:03:30]} 21. Rc1 {[%emt 0:03:30]} Rc8 {[%emt 0:01:30]} 22. b4 {[%emt 0:04:30]} Nb8 {[%emt 0:00:30]} 23. Bh6 {[%emt 0:02:30]} Nd7 {[%emt 0:00:00]} 24. Bxg7 {[%emt 0:01:30]} Kxg7 {[%emt 0:00:00]} 25. h4 {[%emt 0:00:30]} a5 {[%emt 0:00:30]} 26. bxa5 {[%emt 0:00:30]} Qxa5 {[%emt 0:00:30]} 27. Rb1 {[%emt 0:03:30]} Nb6 {[%emt 0:05:30]} 28. Qg5 {[%emt 0:02:30]} h6 {[%emt 0:06:30]} 29. Qf6+ {[%emt 0:00:30]} Kg8 {[%emt 0:00:30]} 30. h5 {[%emt 0:01:30]} Nd7 {[%emt 0:00:30]} 31. Qe7 {[%emt 0:07:30]} Qd8 {[%emt 0:00:30]} 32. Qxd8+ {[%emt 0:00:30]} Rxd8 {[%emt 0:00:30]} 33. hxg6 {[%emt 0:00:30]} fxg6 {[%emt 0:00:30]} 34. Rb7 {[%emt 0:00:30]} c5 {[%emt 0:00:30]} 35. dxc5 {[%emt 0:00:30]} Nxc5 {[%emt 0:00:30]} 36. Rc7 {[%emt 0:00:00]} Nb3 {[%emt 0:06:30]} 37. Re7 {[%emt 0:04:00]} d4 {[%emt 0:09:30]} 38. Rxe6 {[%emt 0:00:30]} Kf7 {[%emt 0:03:30]} 39. Rb6 {[%emt 0:01:30]} Nc5 {[%emt 0:00:30]} 40. Rf6+ {[%emt 0:01:30]} Ke7 {[%emt 0:01:30]} 41. Rxg6 {[%emt 0:01:30]} Ne6 {[%emt 0:00:30]} 42. Rxh6 {[%emt 0:09:30]} d3 {[%emt 0:01:30]} 43. Rh7+ {[%emt 0:00:30]} Ke8 {[%emt 0:00:00]} 44. Rh8+ {[%emt 0:00:00]} Nf8 {[%emt 0:00:00]} 45. Nd2 {[%emt 0:00:00]} Ra8 {[%emt 0:00:30]} 46. f4 {[%emt 0:01:30]} Rxa3 {[%emt 0:00:30]} 47. Kf2 {[%emt 0:00:30]} Kf7 {[%emt 0:00:30]} 48. Ke3 {[%emt 0:01:30]} Kg7 {[%emt 0:00:30]} 49. Rh1 {[%emt 0:00:30]} Ng6 {[%emt 0:01:30]} 50. Rb1 {[%emt 0:01:30]} Ra2 {[%emt 0:01:30]} 51. g3 {[%emt 0:00:30]} Ra4 {[%emt 0:01:30]} 52. Rb3 {[%emt 0:02:30]} Ne7 {[%emt 0:00:30]} 53. Kxd3 {[%emt 0:01:30]} Nd5 {[%emt 0:00:30]} 54. Nc4 {[%emt 0:02:30]} Ra1 {[%emt 0:00:30]} 55. Ke4 {[%emt 0:03:30]} Ne7 {[%emt 0:00:00]} 56. g4 {[%emt 0:01:30]} Ra4 {[%emt 0:00:00]} 57. Rc3 {[%emt 0:00:30]} Ra7 {[%emt 0:00:00]} 58. f5 {[%emt 0:00:30]} Ng8 {[%emt 0:00:00]} 59. g5 {[%emt 0:02:30]} Kh8 {[%emt 0:00:30]} 60. f6 {[%emt 0:00:30]} Kh7 {[%emt 0:01:30]} 61. Kf5 {[%emt 0:00:30]} Nh6+ {[%emt 0:00:30]} 62. gxh6 {[%emt 0:00:00]} Kh8 {[%emt 0:00:30]} 63. Nd6 {[%emt 0:01:00]} Kh7 {[%emt 0:00:30]} 64. f7 {[%emt 0:00:30]} 1-0